[Event "Championnat du monde jeunes U10"]
[Date "2024.11.20"]
[White "Lee, Yugeon"]
[Black "Enkhbileg, Gantumur"]
[WhiteElo "1690"]
[BlackElo "1529"]
[Round "6.11"]
[Result "1-0"]
[TimeControl "5400+30"]

1. d4 {[%clk 1:30:57]} 1... Nf6 {[%clk 1:30:42]} 2. c4 {[%clk 1:31:22]} 2... g6
{[%clk 1:31:06]} 3. Nc3 {[%clk 1:31:44]} 3... Bg7 {[%clk 1:31:30]} 4. e4 {[%clk
1:32:09]} 4... d6 {[%clk 1:31:54]} 5. Nf3 {[%clk 1:32:34]} 5... Bg4 {[%clk
1:31:59]} 6. Be2 {[%clk 1:32:27]} 6... Bxf3 {[%clk 0:56:10]} 7. Bxf3 {[%clk
1:32:14]} 7... O-O {[%clk 0:55:35]} 8. e5 {[%clk 1:31:28]} 8... Nc6 {[%clk
0:52:11]} 9. exf6 {[%clk 1:28:01]} 9... Bxf6 {[%clk 0:52:29]} 10. Bxc6 {[%clk
1:28:23]} 10... bxc6 {[%clk 0:52:55]} 11. O-O {[%clk 1:28:30]} 11... Re8 {[%clk
0:52:58]} 12. Bh6 {[%clk 1:28:34]} 12... e5 {[%clk 0:35:14]} 13. dxe5 {[%clk
1:25:35]} 13... Bxe5 {[%clk 0:19:18]} 14. f4 {[%clk 1:25:16]} 14... Bf6 {[%clk
0:17:48]} 15. Qf3 {[%clk 1:22:36]} 15... Qb8 {[%clk 0:17:06]} 16. Rab1 {[%clk
1:21:26]} 16... Qb6+ {[%clk 0:13:41]} 17. Kh1 {[%clk 1:20:44]} 17... Re3 {[%clk
0:09:48]} 18. Qg4 {[%clk 1:19:09]} 18... Rae8 {[%clk 0:08:41]} 19. f5 {[%clk
1:19:23]} 19... Bxc3 {[%clk 0:08:52]} 20. Bxe3 {[%clk 1:19:46]} 20... Qxe3
{[%clk 0:01:25]} 21. bxc3 {[%clk 1:20:07]} 1-0

[Variant "Standard"]
[Site "Europe Echecs"]

[Event "Championnat du monde jeunes U10"]
[Date "2024.11.20"]
[White "Yao, Lucas Mason Pin Qian"]
[Black "Thorulsley, Kairaav"]
[WhiteElo "1687"]
[BlackElo "1520"]
[Round "6.12"]
[Result "1/2-1/2"]
[TimeControl "5400+30"]

1. e4 {[%clk 1:30:56]} 1... c5 {[%clk 1:30:54]} 2. Nf3 {[%clk 1:31:16]} 2... d6
{[%clk 1:31:11]} 3. Bb5+ {[%clk 1:31:32]} 3... Nd7 {[%clk 1:31:32]} 4. c3 {[%clk
1:31:38]} 4... a6 {[%clk 1:31:57]} 5. Ba4 {[%clk 1:31:55]} 5... b5 {[%clk
1:31:46]} 6. Bc2 {[%clk 1:32:14]} 6... Bb7 {[%clk 1:31:19]} 7. d4 {[%clk
1:31:41]} 7... cxd4 {[%clk 1:31:43]} 8. cxd4 {[%clk 1:32:02]} 8... Ngf6 {[%clk
1:31:58]} 9. Nbd2 {[%clk 1:32:03]} 9... e6 {[%clk 1:32:01]} 10. O-O {[%clk
1:31:54]} 10... Be7 {[%clk 1:32:24]} 11. Re1 {[%clk 1:31:25]} 11... O-O {[%clk
1:28:52]} 12. Nf1 {[%clk 1:29:39]} 12... Re8 {[%clk 1:20:32]} 13. Ng3 {[%clk
1:26:35]} 13... Qc7 {[%clk 1:11:25]} 14. Bd2 {[%clk 1:23:53]} 14... Rac8 {[%clk
1:00:38]} 15. Rc1 {[%clk 1:23:08]} 15... Qd8 {[%clk 0:59:46]} 16. Qe2 {[%clk
1:18:49]} 16... h6 {[%clk 0:55:27]} 17. Qd3 {[%clk 1:10:54]} 17... Nf8 {[%clk
0:52:56]} 18. h3 {[%clk 1:05:33]} 18... d5 {[%clk 0:42:51]} 19. e5 {[%clk
0:58:57]} 19... Ne4 {[%clk 0:42:54]} 20. Be3 {[%clk 0:57:50]} 20... Qd7 {[%clk
0:31:33]} 21. Nd2 {[%clk 0:55:26]} 21... Nxg3 {[%clk 0:30:50]} 22. fxg3 {[%clk
0:55:38]} 22... Bb4 {[%clk 0:20:31]} 23. a3 {[%clk 0:55:05]} 23... Be7 {[%clk
0:16:42]} 24. Nb3 {[%clk 0:50:24]} 24... Red8 {[%clk 0:16:59]} 25. Rf1 {[%clk
0:48:05]} 25... Rc7 {[%clk 0:09:02]} 26. Rxf7 {[%clk 0:44:13]} 26... Kxf7 {[%clk
0:07:21]} 27. Rf1+ {[%clk 0:44:31]} 27... Kg8 {[%clk 0:07:16]} 28. Rxf8+ {[%clk
0:44:20]} 28... Kxf8 {[%clk 0:07:04]} 29. Qh7 {[%clk 0:41:03]} 29... Rxc2 {[%clk
0:07:07]} 30. Bxh6 {[%clk 0:41:09]} 30... gxh6 {[%clk 0:04:29]} 31. Qh8+ {[%clk
0:40:56]} 31... Kf7 {[%clk 0:04:46]} 32. Qh7+ {[%clk 0:41:19]} 32... Ke8 {[%clk
0:05:08]} 33. Qg6+ {[%clk 0:41:36]} 33... Kf8 {[%clk 0:05:33]} 34. Qxh6+ {[%clk
0:41:54]} 34... Ke8 {[%clk 0:05:51]} 35. Qg6+ {[%clk 0:42:05]} 35... Kf8 {[%clk
0:06:18]} 36. Qh6+ {[%clk 0:42:20]} 36... Ke8 {[%clk 0:06:38]} 37. Qh5+ {[%clk
0:42:24]} 37... Kf8 {[%clk 0:06:50]} 38. Qh6+ {[%clk 0:42:43]} 1/2-1/2

[Variant "Standard"]
[Site "Europe Echecs"]

[Event "Championnat du monde jeunes U10"]
[Date "2024.11.20"]
[White "Youn, Laeho"]
[Black "Aghoyan, Gevorg"]
[WhiteElo "1520"]
[BlackElo "1682"]
[Round "6.13"]
[Result "0-1"]
[TimeControl "5400+30"]

1. e4 {[%clk 1:30:59]} 1... c6 {[%clk 1:30:50]} 2. d4 {[%clk 1:31:25]} 2... d5
{[%clk 1:31:15]} 3. exd5 {[%clk 1:31:50]} 3... cxd5 {[%clk 1:31:38]} 4. Bd3
{[%clk 1:32:15]} 4... Nc6 {[%clk 1:31:55]} 5. c3 {[%clk 1:32:41]} 5... Nf6
{[%clk 1:32:01]} 6. Bf4 {[%clk 1:32:51]} 6... Bg4 {[%clk 1:31:23]} 7. Qb3 {[%clk
1:33:11]} 7... Qd7 {[%clk 1:31:06]} 8. Nd2 {[%clk 1:33:15]} 8... e6 {[%clk
1:30:37]} 9. Ngf3 {[%clk 1:33:27]} 9... Bxf3 {[%clk 1:29:32]} 10. Nxf3 {[%clk
1:33:48]} 10... Bd6 {[%clk 1:29:19]} 11. Bxd6 {[%clk 1:33:32]} 11... Qxd6 {[%clk
1:29:36]} 12. O-O {[%clk 1:33:49]} 12... O-O {[%clk 1:24:58]} 13. Rae1 {[%clk
1:33:31]} 13... Qc7 {[%clk 1:22:47]} 14. Ne5 {[%clk 1:32:35]} 14... Ne7 {[%clk
1:17:46]} 15. f4 {[%clk 1:32:15]} 15... Ng6 {[%clk 1:12:54]} 16. Re3 {[%clk
1:31:04]} 16... Rfe8 {[%clk 1:06:08]} 17. Rh3 {[%clk 1:30:10]} 17... Rac8 {[%clk
0:55:35]} 18. Qc2 {[%clk 1:28:12]} 18... a6 {[%clk 0:48:21]} 19. Rff3 {[%clk
1:27:31]} 19... b5 {[%clk 0:45:39]} 20. Qe2 {[%clk 1:26:24]} 20... Qd6 {[%clk
0:40:46]} 21. a4 {[%clk 1:24:05]} 21... Ra8 {[%clk 0:37:19]} 22. axb5 {[%clk
1:23:24]} 22... axb5 {[%clk 0:36:42]} 23. Bxb5 {[%clk 1:23:43]} 23... Ra1+
{[%clk 0:36:00]} 24. Rf1 {[%clk 1:23:13]} 24... Nxf4 25. Qf2 {[%clk 1:23:17]}
25... Nxh3+ {[%clk 0:33:19]} 26. gxh3 {[%clk 1:23:39]} 26... Rxf1+ {[%clk
0:33:42]} 27. Qxf1 {[%clk 1:23:39]} 27... Rb8 {[%clk 0:33:22]} 28. Nc6 {[%clk
1:22:06]} 28... Rb6 {[%clk 0:31:38]} 29. Ne5 {[%clk 1:22:28]} 29... Qb8 {[%clk
0:30:25]} 30. Bd3 {[%clk 1:18:19]} 30... Rxb2 {[%clk 0:29:23]} 31. Qa1 {[%clk
1:17:44]} 31... Nd7 {[%clk 0:21:57]} 32. Ng4 {[%clk 1:14:20]} 32... h5 {[%clk
0:20:19]} 33. Ne5 {[%clk 1:14:39]} 33... Nxe5 {[%clk 0:20:11]} 34. dxe5 {[%clk
1:15:05]} 34... Rb7 {[%clk 0:19:25]} 35. Qe1 {[%clk 1:12:19]} 35... Rb2 {[%clk
0:18:15]} 36. Qh4 {[%clk 1:12:10]} 36... Qa7+ {[%clk 0:18:00]} 37. Kf1 {[%clk
1:10:12]} 37... Qa1+ {[%clk 0:18:17]} 38. Qe1 {[%clk 1:10:37]} 38... Qxe1+
{[%clk 0:18:40]} 39. Kxe1 {[%clk 1:10:49]} 39... Rxh2 {[%clk 0:19:03]} 40. Bf1
{[%clk 1:11:02]} 40... Rc2 {[%clk 0:19:05]} 41. c4 {[%clk 1:11:19]} 41... Rxc4
{[%clk 0:19:10]} 42. Bxc4 {[%clk 1:11:31]} 42... dxc4 {[%clk 0:19:37]} 43. Kd2
{[%clk 1:11:56]} 43... Kh7 {[%clk 0:20:01]} 44. Kc3 {[%clk 1:12:21]} 44... Kg6
{[%clk 0:20:25]} 45. Kxc4 {[%clk 1:12:46]} 45... Kf5 {[%clk 0:20:52]} 46. Kd4
{[%clk 1:13:08]} 46... Kf4 {[%clk 0:21:17]} 47. h4 {[%clk 1:13:30]} 47... g6
{[%clk 0:21:41]} 48. Kd3 {[%clk 1:13:52]} 48... Kxe5 {[%clk 0:22:05]} 49. Ke3
{[%clk 1:14:19]} 49... Kf5 {[%clk 0:22:03]} 50. Kf3 {[%clk 1:12:04]} 50... g5
{[%clk 0:22:27]} 51. hxg5 {[%clk 1:12:29]} 51... f6 {[%clk 0:22:50]} 52. gxf6
{[%clk 1:12:51]} 52... Kxf6 {[%clk 0:23:15]} 53. Ke4 {[%clk 1:13:16]} 53... e5
{[%clk 0:23:40]} 54. Ke3 {[%clk 1:13:39]} 54... Kf5 {[%clk 0:24:06]} 55. Kf3
{[%clk 1:14:06]} 55... e4+ {[%clk 0:24:31]} 56. Ke3 {[%clk 1:14:31]} 56... h4
{[%clk 0:24:58]} 57. Ke2 {[%clk 1:14:42]} 57... h3 {[%clk 0:25:20]} 58. Kf2
{[%clk 1:15:10]} 58... Kf4 {[%clk 0:25:42]} 59. Kg1 {[%clk 1:15:30]} 59... e3
{[%clk 0:26:03]} 60. Kf1 {[%clk 1:15:39]} 60... e2+ {[%clk 0:26:18]} 0-1

[Variant "Standard"]
[Site "Europe Echecs"]

[Event "Championnat du monde jeunes U10"]
[Date "2024.11.20"]
[White "Zilincan, Tomas"]
[Black "Novac, Daniil"]
[WhiteElo "1778"]
[BlackElo "1594"]
[Round "6.15"]
[Result "1/2-1/2"]
[TimeControl "5400+30"]

1. e4 {[%clk 1:30:43]} 1... e5 {[%clk 1:30:21]} 2. Nf3 {[%clk 1:30:12]} 2... Nc6
{[%clk 1:30:20]} 3. Bc4 {[%clk 1:30:08]} 3... Bc5 {[%clk 1:30:27]} 4. d3 {[%clk
1:30:22]} 4... Nf6 {[%clk 1:29:06]} 5. Bg5 {[%clk 1:30:39]} 5... h6 {[%clk
1:25:10]} 6. Bh4 {[%clk 1:30:54]} 6... g5 {[%clk 1:24:05]} 7. Bg3 {[%clk
1:31:13]} 7... d6 {[%clk 1:24:16]} 8. Nc3 {[%clk 1:30:58]} 8... Bg4 {[%clk
1:22:38]} 9. Qd2 {[%clk 1:29:26]} 9... Bxf3 {[%clk 1:21:27]} 10. gxf3 {[%clk
1:29:48]} 10... Nd4 {[%clk 1:21:34]} 11. O-O-O {[%clk 1:29:30]} 11... Nxf3
{[%clk 1:20:35]} 12. Qe2 {[%clk 1:29:49]} 12... Nd4 {[%clk 1:20:55]} 13. Qf1
{[%clk 1:30:12]} 13... Qd7 {[%clk 1:20:19]} 14. f3 {[%clk 1:30:28]} 14... O-O-O
{[%clk 1:19:59]} 15. h4 {[%clk 1:30:44]} 15... Nh5 {[%clk 1:14:43]} 16. Qg2
{[%clk 1:30:57]} 16... Nf4 {[%clk 1:12:25]} 17. Bxf4 {[%clk 1:30:56]} 17... gxf4
{[%clk 1:12:43]} 18. Rdf1 {[%clk 1:28:27]} 18... Rdg8 {[%clk 1:10:25]} 19. Qd2
{[%clk 1:28:24]} 19... Nb3+ {[%clk 1:06:52]} 20. Bxb3 {[%clk 1:23:06]} 20... Be3
{[%clk 1:07:12]} 21. Nd5 {[%clk 1:23:25]} 21... Bxd2+ {[%clk 1:06:55]} 22. Kxd2
{[%clk 1:23:48]} 22... Rg2+ {[%clk 1:07:10]} 23. Kc1 {[%clk 1:24:12]} 23... a5
{[%clk 1:01:35]} 24. a3 {[%clk 1:24:20]} 24... Kb8 {[%clk 1:01:03]} 25. Rfg1
{[%clk 1:23:38]} 25... Rhg8 {[%clk 1:00:29]} 26. Rf1 {[%clk 1:22:15]} 26... a4
{[%clk 0:58:16]} 27. Ba2 {[%clk 1:22:39]} 27... Qc6 {[%clk 0:55:04]} 28. Nb4
{[%clk 1:20:24]} 28... Rxc2+ {[%clk 0:53:49]} 29. Nxc2 {[%clk 1:20:42]} 29...
Rg2 {[%clk 0:53:18]} 30. Bb1 {[%clk 1:20:58]} 30... Qc5 {[%clk 0:50:28]} 31. Rd1
{[%clk 1:20:05]} 31... Qf2 {[%clk 0:46:58]} 32. Rhf1 {[%clk 1:19:10]} 32... Qe2
{[%clk 0:44:51]} 33. h5 Rh2 {[%clk 0:40:47]} 34. Rg1 {[%clk 0:59:25]} 34... Qxf3
{[%clk 0:26:59]} 1/2-1/2

[Variant "Standard"]
[Site "Europe Echecs"]

[Event "Championnat du monde jeunes U10"]
[Date "2024.11.20"]
[White "Wang, Yuwei"]
[Black "Santoro, Marco Antonio"]
[WhiteElo "1576"]
[BlackElo "1765"]
[Round "6.16"]
[Result "0-1"]
[TimeControl "5400+30"]

1. d4 {[%clk 1:30:58]} 1... d5 {[%clk 1:30:53]} 2. c4 {[%clk 1:31:22]} 2... e6
{[%clk 1:31:15]} 3. Nc3 {[%clk 1:31:48]} 3... c6 {[%clk 1:31:28]} 4. e3 {[%clk
1:32:11]} 4... Nf6 {[%clk 1:31:53]} 5. Nf3 {[%clk 1:32:35]} 5... Bd6 {[%clk
1:31:43]} 6. Bd2 {[%clk 1:32:40]} 6... O-O {[%clk 1:32:01]} 7. Bd3 {[%clk
1:32:51]} 7... dxc4 {[%clk 1:32:24]} 8. Bxc4 {[%clk 1:33:16]} 8... b5 {[%clk
1:32:47]} 9. Bb3 {[%clk 1:32:05]} 9... Nbd7 {[%clk 1:33:04]} 10. O-O {[%clk
1:32:10]} 10... Bb7 {[%clk 1:33:28]} 11. a3 {[%clk 1:31:42]} 11... a6 {[%clk
1:33:51]} 12. Bc2 {[%clk 1:31:21]} 12... Re8 {[%clk 1:32:46]} 13. Re1 {[%clk
1:28:56]} 13... Qc7 {[%clk 1:31:47]} 14. h3 {[%clk 1:26:56]} 14... Rac8 {[%clk
1:31:20]} 15. Rc1 {[%clk 1:18:44]} 15... h6 {[%clk 1:30:42]} 16. e4 {[%clk
1:17:54]} 16... e5 {[%clk 1:27:26]} 17. dxe5 {[%clk 1:17:51]} 17... Nxe5 {[%clk
1:27:30]} 18. Nxe5 {[%clk 1:17:38]} 18... Bxe5 {[%clk 1:27:47]} 19. Qf3 {[%clk
1:17:19]} 19... Rcd8 {[%clk 1:26:32]} 20. Rcd1 {[%clk 1:14:51]} 20... c5 {[%clk
1:25:16]} 21. b3 {[%clk 0:56:47]} 21... b4 {[%clk 1:20:56]} 22. Nb1 {[%clk
0:57:01]} 22... a5 {[%clk 1:20:33]} 23. a4 {[%clk 0:45:59]} 23... Re6 {[%clk
1:04:42]} 24. Kh1 {[%clk 0:41:27]} 24... Rde8 {[%clk 1:02:39]} 25. Qe2 {[%clk
0:36:41]} 25... Bd4 {[%clk 0:57:23]} 26. Be3 {[%clk 0:32:03]} 26... Bxe4 {[%clk
0:56:39]} 27. Bxe4 {[%clk 0:31:15]} 27... Nxe4 {[%clk 0:56:46]} 28. Qc2 {[%clk
0:29:47]} 28... Bxe3 {[%clk 0:56:51]} 29. fxe3 {[%clk 0:29:42]} 29... Rf6 {[%clk
0:53:45]} 30. Kg1 {[%clk 0:26:37]} 30... Nf2 {[%clk 0:49:48]} 31. Qxf2 {[%clk
0:24:58]} 31... Rxf2 {[%clk 0:50:10]} 32. Kxf2 {[%clk 0:25:26]} 32... Qe5 {[%clk
0:49:31]} 33. Nd2 {[%clk 0:23:43]} 33... Qc3 {[%clk 0:47:46]} 34. Re2 {[%clk
0:20:41]} 34... Kh7 {[%clk 0:39:52]} 35. Rde1 {[%clk 0:20:02]} 35... Rd8 {[%clk
0:39:17]} 36. Rd1 {[%clk 0:18:16]} 36... Qc2 {[%clk 0:39:24]} 37. Ke1 {[%clk
0:18:13]} 37... c4 {[%clk 0:38:32]} 38. bxc4 {[%clk 0:18:07]} 38... b3 {[%clk
0:38:57]} 39. c5 {[%clk 0:17:34]} 39... b2 {[%clk 0:39:17]} 40. c6 {[%clk
0:16:46]} 40... Qxd1+ {[%clk 0:39:40]} 41. Kxd1 {[%clk 0:17:05]} 41... b1=Q#
{[%clk 0:39:30]} 0-1

[Variant "Standard"]
[Site "Europe Echecs"]

[Event "Championnat du monde jeunes U10"]
[Date "2024.11.20"]
[White "Ostapenko, Volodymyr"]
[Black "Veber, Tibor"]
[WhiteElo "1720"]
[BlackElo "1532"]
[Round "6.17"]
[Result "1/2-1/2"]
[TimeControl "5400+30"]

1. e4 {[%clk 1:30:58]} 1... e5 {[%clk 1:30:21]} 2. d4 {[%clk 1:31:17]} 2... exd4
{[%clk 1:30:21]} 3. c3 {[%clk 1:31:11]} 3... d5 {[%clk 1:30:24]} 4. exd5 {[%clk
1:31:12]} 4... Qxd5 {[%clk 1:29:24]} 5. cxd4 {[%clk 1:30:38]} 5... Nf6 {[%clk
1:28:34]} 6. Nc3 {[%clk 1:29:35]} 6... Bb4 {[%clk 1:26:27]} 7. Nf3 {[%clk
1:20:49]} 7... O-O {[%clk 1:22:01]} 8. Be3 {[%clk 1:16:18]} 8... Bxc3+ {[%clk
1:12:58]} 9. bxc3 {[%clk 1:16:17]} 9... Ng4 {[%clk 1:10:14]} 10. Bd2 {[%clk
1:08:09]} 10... Bf5 {[%clk 1:02:38]} 11. Be2 {[%clk 1:03:32]} 11... Re8 {[%clk
0:57:19]} 12. O-O {[%clk 1:01:15]} 12... Nf6 {[%clk 0:53:47]} 13. Bf4 {[%clk
0:56:20]} 13... c6 {[%clk 0:51:35]} 14. Re1 {[%clk 0:51:52]} 14... Nbd7 {[%clk
0:48:53]} 15. c4 {[%clk 0:48:28]} 15... Qa5 {[%clk 0:47:40]} 16. Qd2 {[%clk
0:45:02]} 16... Qxd2 {[%clk 0:45:53]} 17. Nxd2 {[%clk 0:44:12]} 17... Nb6 {[%clk
0:42:41]} 18. c5 {[%clk 0:42:33]} 18... Nbd5 {[%clk 0:42:21]} 19. Be5 {[%clk
0:40:16]} 19... Nd7 {[%clk 0:42:25]} 20. Bg3 {[%clk 0:40:03]} 20... Re6 {[%clk
0:39:25]} 21. Bc4 {[%clk 0:35:47]} 21... N7f6 {[%clk 0:37:34]} 22. Rxe6 {[%clk
0:34:31]} 22... Bxe6 {[%clk 0:37:40]} 23. Bb3 {[%clk 0:33:17]} 23... Re8 {[%clk
0:36:24]} 24. Nc4 {[%clk 0:30:51]} 24... Ne4 {[%clk 0:33:54]} 25. Nd6 {[%clk
0:30:06]} 25... Nxd6 {[%clk 0:33:48]} 26. Bxd6 {[%clk 0:30:08]} 26... Nc3 {[%clk
0:32:17]} 27. Re1 {[%clk 0:29:27]} 27... Bd7 {[%clk 0:31:51]} 28. Re7 Rxe7 29.
Bxe7 Nb5 30. d5 cxd5 31. Bxd5 b6 1/2-1/2

[Variant "Standard"]
[Site "Europe Echecs"]

[Event "Championnat du monde jeunes U10"]
[Date "2024.11.20"]
[White "Della Penna, Leonardo"]
[Black "Loberti, Tommaso"]
[WhiteElo "1675"]
[BlackElo "1474"]
[Round "6.20"]
[Result "1-0"]
[TimeControl "5400+30"]

1. e4 {[%clk 1:30:38]} 1... e5 {[%clk 1:30:48]} 2. Nf3 {[%clk 1:30:59]} 2... Nc6
{[%clk 1:31:12]} 3. Bc4 {[%clk 1:31:20]} 3... Bc5 {[%clk 1:31:35]} 4. c3 {[%clk
1:31:35]} 4... Nf6 {[%clk 1:31:36]} 5. d3 {[%clk 1:31:48]} 5... h6 {[%clk
1:31:25]} 6. O-O {[%clk 1:32:02]} 6... d6 {[%clk 1:31:10]} 7. b4 {[%clk
1:32:14]} 7... Bb6 {[%clk 1:31:32]} 8. a4 {[%clk 1:32:32]} 8... a6 {[%clk
1:31:39]} 9. Ba3 {[%clk 1:32:15]} 9... Be6 {[%clk 1:29:33]} 10. Bxe6 {[%clk
1:32:23]} 10... fxe6 {[%clk 1:29:56]} 11. Qb3 {[%clk 1:31:34]} 11... Qd7 {[%clk
1:26:56]} 12. Nbd2 {[%clk 1:30:58]} 12... O-O {[%clk 1:22:40]} 13. Nc4 {[%clk
1:30:44]} 13... Ba7 {[%clk 1:21:38]} 14. b5 {[%clk 1:30:08]} 14... axb5 {[%clk
1:20:52]} 15. axb5 {[%clk 1:30:14]} 15... Ne7 {[%clk 1:19:08]} 16. Ncxe5 {[%clk
1:29:12]} 16... Qc8 {[%clk 1:14:06]} 17. Nc4 {[%clk 1:27:47]} 17... Ng6 {[%clk
1:11:09]} 18. e5 {[%clk 1:27:13]} 18... d5 {[%clk 1:07:53]} 19. Bxf8 {[%clk
1:25:49]} 19... dxc4 {[%clk 1:08:06]} 20. Qxc4 {[%clk 1:25:15]} 20... Nd5 {[%clk
1:06:02]} 21. Bc5 {[%clk 1:23:35]} 21... b6 {[%clk 1:05:52]} 22. Be3 {[%clk
1:22:47]} 1-0

[Variant "Standard"]
[Site "Europe Echecs"]

[Event "Championnat du monde jeunes U10"]
[Date "2024.11.20"]
[White "Wu, Chenyu"]
[Black "Vydra, David"]
[WhiteElo "1503"]
[BlackElo "1615"]
[Round "6.21"]
[Result "1-0"]
[TimeControl "5400+30"]

1. d4 {[%clk 1:30:54]} 1... Nf6 {[%clk 1:30:42]} 2. c4 {[%clk 1:31:16]} 2... e6
{[%clk 1:30:49]} 3. Nc3 {[%clk 1:31:35]} 3... Bb4 {[%clk 1:31:00]} 4. Nf3 {[%clk
1:31:59]} 4... O-O {[%clk 1:30:37]} 5. e3 {[%clk 1:32:22]} 5... d5 {[%clk
1:30:15]} 6. Bd3 {[%clk 1:32:36]} 6... c5 {[%clk 1:29:06]} 7. O-O {[%clk
1:29:17]} 7... cxd4 {[%clk 1:28:14]} 8. exd4 {[%clk 1:29:09]} 8... dxc4 {[%clk
1:27:50]} 9. Bxc4 {[%clk 1:29:32]} 9... b6 {[%clk 1:27:31]} 10. Bg5 {[%clk
1:29:36]} 10... Bb7 {[%clk 1:26:17]} 11. a3 {[%clk 1:27:55]} 11... Be7 {[%clk
1:21:54]} 12. Qe2 {[%clk 1:24:52]} 12... Nbd7 {[%clk 1:18:17]} 13. Rfd1 {[%clk
1:24:25]} 13... Rc8 {[%clk 1:13:58]} 14. Ne5 {[%clk 1:19:24]} 14... Qc7 {[%clk
1:05:09]} 15. Nb5 {[%clk 1:18:06]} 15... Qd8 {[%clk 1:04:04]} 16. Nxa7 {[%clk
1:18:16]} 16... Rxc4 {[%clk 0:58:16]} 17. Qxc4 {[%clk 1:17:53]} 17... Qa8 {[%clk
0:56:46]} 18. f3 {[%clk 1:12:21]} 18... Qxa7 {[%clk 0:55:20]} 19. Nxd7 {[%clk
1:11:40]} 19... Ba6 {[%clk 0:54:42]} 20. Nxf6+ {[%clk 1:10:36]} 20... gxf6
{[%clk 0:54:10]} 21. Qa4 {[%clk 1:09:17]} 21... fxg5 {[%clk 0:53:38]} 22. Kh1
{[%clk 1:08:52]} 22... b5 {[%clk 0:36:33]} 23. Qb3 {[%clk 1:07:52]} 23... Rd8
{[%clk 0:34:07]} 24. a4 {[%clk 1:02:38]} 24... b4 {[%clk 0:33:56]} 25. d5 {[%clk
1:02:00]} 25... exd5 {[%clk 0:29:59]} 26. Rxd5 {[%clk 1:02:17]} 26... Qf2 {[%clk
0:23:16]} 27. Rxd8+ {[%clk 1:02:08]} 27... Bxd8 {[%clk 0:22:58]} 28. Qd5 {[%clk
1:01:52]} 28... Bf1 {[%clk 0:16:55]} 29. Qxd8+ {[%clk 1:01:58]} 29... Kg7 {[%clk
0:17:19]} 30. Qxg5+ {[%clk 1:02:03]} 30... Kf8 {[%clk 0:17:24]} 31. Rd1 {[%clk
1:02:15]} 31... Bd3 {[%clk 0:17:08]} 32. Qd8+ {[%clk 1:02:35]} 1-0

[Variant "Standard"]
[Site "Europe Echecs"]

[Event "Championnat du monde jeunes U10"]
[Date "2024.11.22"]
[White "Kolodziejczyk, Boris"]
[Black "Shogdzhiev, Roman"]
[WhiteElo "2115"]
[BlackElo "2202"]
[Round "7.1"]
[Result "0-1"]
[TimeControl "5400+30"]

1. e4 {[%clk 1:30:56]} 1... c5 {[%clk 1:30:58]} 2. Nf3 {[%clk 1:31:18]} 2... d6
{[%clk 1:31:24]} 3. Bb5+ {[%clk 1:31:36]} 3... Nd7 {[%clk 1:31:53]} 4. O-O
{[%clk 1:31:45]} 4... a6 {[%clk 1:32:20]} 5. Bd3 {[%clk 1:31:57]} 5... g6 {[%clk
1:32:49]} 6. c3 {[%clk 1:32:03]} 6... Bg7 {[%clk 1:33:19]} 7. Bc2 Ne5 8. Nxe5
{[%clk 1:31:05]} 8... dxe5 {[%clk 1:34:14]} 9. d3 {[%clk 1:28:20]} 9... Nf6
{[%clk 1:34:35]} 10. Be3 {[%clk 1:27:24]} 10... Qc7 {[%clk 1:34:24]} 11. h3
{[%clk 1:24:56]} 11... O-O {[%clk 1:30:28]} 12. a4 {[%clk 1:15:05]} 12... b6
{[%clk 1:30:56]} 13. Na3 {[%clk 1:11:56]} 13... Rd8 {[%clk 1:19:16]} 14. Qc1
{[%clk 0:55:36]} 14... Nh5 {[%clk 1:17:39]} 15. Nc4 {[%clk 0:52:11]} 15... Be6
{[%clk 1:11:00]} 16. a5 {[%clk 0:41:50]} 16... b5 {[%clk 1:10:31]} 17. Nb6
{[%clk 0:41:30]} 17... Rab8 {[%clk 1:09:58]} 18. b4 {[%clk 0:38:36]} 18... Nf4
{[%clk 1:06:07]} 19. Qb2 {[%clk 0:32:25]} 19... cxb4 {[%clk 0:57:32]} 20. cxb4
{[%clk 0:26:56]} 20... Nxd3 {[%clk 0:49:07]} 21. Bxd3 {[%clk 0:24:50]} 21...
Rxd3 {[%clk 0:49:21]} 22. Rfd1 {[%clk 0:21:24]} 22... Rxd1+ {[%clk 0:40:38]} 23.
Rxd1 {[%clk 0:21:29]} 23... f5 {[%clk 0:37:53]} 24. Qd2 {[%clk 0:15:12]} 24...
fxe4 {[%clk 0:29:56]} 25. Nd5 {[%clk 0:13:13]} 25... Qb7 {[%clk 0:28:27]} 26.
Bc5 {[%clk 0:12:08]} 26... Kf7 {[%clk 0:22:04]} 27. Nc3 {[%clk 0:11:20]} 27...
h6 {[%clk 0:18:49]} 28. Qe3 {[%clk 0:10:54]} 28... Bf5 {[%clk 0:18:44]} 29. g4
{[%clk 0:11:04]} 29... Be6 {[%clk 0:18:01]} 30. Nxe4 {[%clk 0:10:52]} 30... Bd5
{[%clk 0:15:27]} 31. Ng3 {[%clk 0:09:42]} 31... Bf6 {[%clk 0:14:50]} 32. Qd3
{[%clk 0:08:03]} 32... e6 {[%clk 0:14:28]} 33. Qe3 {[%clk 0:07:44]} 33... Rd8
{[%clk 0:10:28]} 34. Kh2 {[%clk 0:06:46]} 34... Kg7 {[%clk 0:10:34]} 35. f3
{[%clk 0:06:23]} 35... Bxf3 {[%clk 0:09:05]} 36. Rxd8 {[%clk 0:06:38]} 36...
Bxd8 {[%clk 0:09:28]} 37. Qxe5+ Bf6 38. Qxe6 {[%clk 0:05:31]} 38... Qf7 {[%clk
0:10:21]} 39. Qxf7+ {[%clk 0:04:58]} 39... Kxf7 {[%clk 0:10:51]} 40. Kg1 {[%clk
0:04:43]} 40... Ke6 {[%clk 0:05:30]} 41. Kf2 {[%clk 0:04:41]} 41... Bb7 {[%clk
0:05:26]} 42. Ke3 {[%clk 0:04:07]} 42... Bg5+ {[%clk 0:04:12]} 43. Kd3 {[%clk
0:03:17]} 43... Bg2 {[%clk 0:04:07]} 44. Ne4 {[%clk 0:03:17]} 44... Bf4 {[%clk
0:02:12]} 45. Be3 {[%clk 0:02:29]} 45... Bxe4+ {[%clk 0:01:57]} 46. Kxe4 {[%clk
0:02:58]} 46... Bxe3 {[%clk 0:02:20]} 47. Kxe3 {[%clk 0:03:24]} 47... Kd5 {[%clk
0:02:35]} 48. g5 {[%clk 0:02:11]} 48... hxg5 {[%clk 0:02:38]} 49. Kd3 {[%clk
0:01:56]} 49... g4 {[%clk 0:02:58]} 50. hxg4 {[%clk 0:02:21]} 50... g5 {[%clk
0:03:28]} 51. Kc3 {[%clk 0:02:13]} 51... Ke4 {[%clk 0:03:52]} 52. Kb3 {[%clk
0:02:38]} 52... Ke5 0-1

[Variant "Standard"]
[Site "Europe Echecs"]